fUSD/lending_fUSD_20250804
["ID","MTS","AMOUNT","RATE_DAILY","PERIOD"]
[377306557,1754327457943,-400.0,0.00054794,120]
[377306558,1754327457952,-1961.87,0.00054794,120]
[377306559,1754327457962,-400.0,0.00054794,120]
[377306560,1754327457971,-400.0,0.00054794,120]
[377306561,1754327457981,-549.50180735,0.00054794,120]
[377306562,1754327457992,-400.0,0.00054794,120]
[377306563,1754327458001,-585.44,0.00054794,120]
[377306564,1754327458011,-479.330873,0.00054794,2]
[377306565,1754327458021,-1242.52,0.00054794,120]
[377306566,1754327458031,-400.0,0.00054794,2]
[377306567,1754327458042,-400.0,0.00054794,120]
[377306568,1754327458053,-400.0,0.00054794,120]
[377306569,1754327458063,-500.0,0.00054794,120]
[377306570,1754327458073,-1213.95,0.00054794,120]
[377306571,1754327458082,-527.68,0.00054794,120]
[377306572,1754327458093,-1161.85,0.00054794,120]
[377306573,1754327458102,-400.0,0.00054794,120]
[377306574,1754327458111,-400.0,0.00054794,120]
[377306575,1754327458121,-400.0,0.00054794,120]
[377306576,1754327458130,-400.0,0.00054794,120]
[377306577,1754327458140,-400.0,0.00054794,120]
[377306578,1754327458149,-400.0,0.00054794,120]
[377306579,1754327458159,-400.0,0.00054794,120]
[377306580,1754327458168,-400.0,0.00054794,120]
[377306581,1754327458178,-2109.22,0.00054794,120]
[377306582,1754327458187,-585.56,0.00054794,120]
[377306583,1754327458197,-427.51,0.00054794,120]
[377306584,1754327458206,-400.0,0.00054794,120]
[377306585,1754327458218,-1792.05,0.00054794,120]
[377306586,1754327458228,-400.0,0.00054794,120]
[377306587,1754327458237,-823.48,0.00054794,120]
[377306588,1754327458247,-400.0,0.00054794,120]
[377306589,1754327458256,-400.0,0.00054794,120]
[377306590,1754327458266,-400.0,0.00054794,120]
[377306591,1754327458275,-892.24,0.00054794,120]
[377306592,1754327458284,-400.0,0.00054794,120]
[377306593,1754327458295,-400.0,0.00054794,120]
[377306594,1754327458304,-400.0,0.00054794,120]
[377306595,1754327458313,-400.0,0.00054794,120]
[377306596,1754327458323,-400.0,0.00054794,14]
[377306597,1754327458332,-400.0,0.00054794,120]
[377306598,1754327458342,-400.0,0.00054794,30]
[377306599,1754327458351,-449.78,0.00054794,120]
[377306600,1754327458361,-400.0,0.00054794,120]
[377306601,1754327458370,-400.0,0.00054794,120]
[377306602,1754327458379,-633.94,0.00054794,120]
[377306603,1754327458389,-641.5,0.00054794,120]
[377306604,1754327458398,-630.92,0.00054794,120]
[377306605,1754327458407,-399.89395556,0.00054794,120]
[377306606,1754327458417,-400.0,0.00054794,120]
[377306607,1754327458426,-1737.21,0.00054794,120]
[377306608,1754327458435,-400.0,0.00054794,120]
[377306609,1754327458445,-400.0,0.00054794,120]
[377306610,1754327458454,-400.0,0.00054794,120]
[377306611,1754327458463,-400.0,0.00054794,2]
[377306612,1754327458473,-400.0,0.00054794,120]
[377306613,1754327458482,-400.0,0.00054794,120]
[377306614,1754327458492,-400.0,0.00054794,120]
[377306615,1754327458501,-621.63,0.00054794,120]
[377306616,1754327458511,-400.0,0.00054794,120]
[377306617,1754327458521,-400.0,0.00054794,120]
[377306618,1754327458530,-400.0,0.00054794,120]
[377306619,1754327458539,-400.0,0.00054794,120]
[377306620,1754327458550,-516.46,0.00054794,120]
[377306621,1754327458559,-611.86,0.00054794,120]
[377306622,1754327458568,-326.29092853,0.00054794,120]
[377306623,1754327458578,-645.66,0.00054794,120]
[377306624,1754327458588,-300.0,0.00054794,120]
[377306625,1754327458603,-689.35,0.00054794,120]
[377306626,1754327458612,-400.0,0.00054794,120]
[377306627,1754327458622,-627.19,0.00054794,120]
[377306628,1754327458632,-2055.62,0.00054794,120]
[377306629,1754327458642,-627.58,0.00054794,120]
[377306630,1754327458652,-400.0,0.00054794,120]
[377306631,1754327458662,-223.1317721,0.00054794,30]
[377306632,1754327458671,-400.0,0.00054794,120]
[377306633,1754327458682,-400.0,0.00054794,120]
[377306634,1754327458692,-1112.84,0.00054794,120]
[377306635,1754327458701,-2260.43,0.00054794,120]
[377306636,1754327458710,-400.0,0.00054794,120]
[377306637,1754327458720,-1208.7,0.00054794,120]
[377306638,1754327458730,-1241.72,0.00054794,120]
[377306639,1754327458740,-416.11322737,0.00054794,120]
[377306640,1754327458751,-421.35,0.00054794,120]
[377306641,1754327458760,-400.0,0.00054794,120]
[377306642,1754327458770,-400.0,0.00054794,120]
[377306643,1754327458780,-966.22,0.00054794,120]
[377306644,1754327458790,-400.0,0.00054794,120]
[377306645,1754327458800,-400.0,0.00054794,120]
[377306646,1754327458810,-611.51,0.00054794,120]
[377306647,1754327458820,-400.0,0.00054794,120]
[377306648,1754327458830,-2699.85,0.00054794,120]
[377306649,1754327458840,-400.0,0.00054794,120]
[377306650,1754327458850,-400.0,0.00054794,120]
[377306651,1754327458859,-400.0,0.00054794,120]
[377306652,1754327458869,-458.47846953,0.00054794,120]
[377306653,1754327458878,-500.0,0.00054794,2]
[377306654,1754327458887,-470.27,0.00054794,120]
[377306655,1754327458897,-400.0,0.00054794,120]
[377306656,1754327458907,-400.0,0.00054794,120]
[377306657,1754327458919,-400.0,0.00054794,120]
[377306658,1754327458933,-1812.25,0.00054794,120]
[377306659,1754327458942,-400.0,0.00054794,120]
[377306660,1754327458952,-1670.66,0.00054794,120]
[377306661,1754327458962,-400.0,0.00054794,120]
[377306662,1754327458972,-400.0,0.00054794,120]
[377306663,1754327458981,-711.43,0.00054794,120]
[377306664,1754327458990,-400.0,0.00054794,120]
[377306665,1754327459000,-175.45026817,0.00054794,120]
[377306666,1754327459010,-575.11,0.00054794,120]
[377306667,1754327459020,-400.0,0.00054794,120]
[377306668,1754327459032,-449.14,0.00054794,120]
[377306669,1754327459042,-739.63,0.00054794,120]
[377306670,1754327459053,-516.01,0.00054794,120]
[377306671,1754327459063,-400.0,0.00054794,120]
[377306672,1754327459074,-506.32,0.00054794,120]
[377306673,1754327459084,-400.0,0.00054794,120]
[377306674,1754327459093,-400.0,0.00054794,120]
[377306675,1754327459103,-400.0,0.00054794,120]
[377306676,1754327459113,-400.0,0.00054794,120]
[377306677,1754327459123,-1030.69,0.00054794,120]
[377306678,1754327459132,-400.0,0.00054794,120]
[377306679,1754327459142,-400.0,0.00054794,120]
[377306680,1754327459151,-400.0,0.00054794,120]
[377306681,1754327459163,-1908.89,0.00054794,120]
[377306682,1754327459172,-400.0,0.00054794,120]
[377306683,1754327459181,-400.0,0.00054794,120]
[377306684,1754327459191,-400.0,0.00054794,120]
[377306685,1754327459202,-400.0,0.00054794,120]
[377306686,1754327459211,-577.83,0.00054794,120]
[377306687,1754327459221,-400.0,0.00054794,120]
[377306688,1754327459231,-400.0,0.00054794,120]
[377306689,1754327459240,-832.9,0.00054794,120]
[377306690,1754327459250,-702.88,0.00054794,120]
[377306691,1754327459259,-891.09,0.00054794,120]
[377306692,1754327459268,-628.2,0.00054794,120]
[377306693,1754327459278,-400.0,0.00054794,120]
[377306694,1754327459287,-924.58,0.00054794,120]
[377306695,1754327459297,-400.0,0.00054794,120]
[377306696,1754327459306,-400.0,0.00054794,16]
[377306697,1754327459315,-400.0,0.00054794,5]
[377306698,1754327459327,-1896.41504788,0.00054794,120]
[377306699,1754327460197,-185.74495212,0.00054794,120]
[377306700,1754327460207,-584.2300509,0.00054794,120]
[377306701,1754327460231,-727.33432058,0.00054794,120]
[377306702,1754327460243,-1405.07562852,0.00054794,120]
[377306703,1754327460253,-400.0,0.00054794,120]
[377306704,1754327460263,-532.31,0.00054794,120]
[377306705,1754327460273,-400.0,0.00054794,120]
[377306706,1754327460283,-2192.67,0.00054794,120]
[377306707,1754327460294,-400.0,0.00054794,120]
[377306708,1754327460306,-406.67279222,0.00054794,120]
[377306709,1754327460316,-151.18146586,0.00054794,120]
[377306710,1754327460405,-248.81853414,0.00054794,120]
[377306711,1754327460416,-400.0,0.00054794,120]
[377306712,1754327460426,-406.87,0.00054794,120]
[377306713,1754327460438,-400.0,0.00054794,120]
[377306714,1754327460450,-1154.53,0.00054794,120]
[377306715,1754327460460,-400.0,0.00054794,120]
[377306716,1754327460471,-400.0,0.00054794,120]
[377306717,1754327460483,-2242.45,0.00054794,120]
[377306718,1754327460495,-161.67636494,0.00054794,120]
[377306719,1754327460510,-238.32363506,0.00054794,120]
[377306720,1754327460522,-319.83251318,0.00054794,120]
[377306721,1754327460612,-500.0,0.00051152,120]
[377306722,1754327460624,-80.16748682,0.00054794,120]
[377306723,1754327460634,-2188.04,0.00054794,120]
[377306724,1754327460646,-400.0,0.00054794,120]
[377306725,1754327460657,-400.0,0.00054794,120]
[377306726,1754327460668,-403.59335172,0.00054794,120]
[377306727,1754327460679,-400.0,0.00054794,120]
[377306728,1754327460696,-400.0,0.00054794,2]
[377306729,1754327460708,-400.0,0.00054794,120]
[377306730,1754327460719,-872.66,0.00054794,120]
[377306731,1754327460731,-400.0,0.00054794,120]
[377306732,1754327460743,-400.0,0.00054794,120]
[377306733,1754327460755,-400.0,0.00054794,120]
[377306734,1754327460766,-400.0,0.00054794,120]
[377306735,1754327460776,-1282.32,0.00054794,120]
[377306736,1754327460786,-1532.11,0.00054794,120]
[377306737,1754327460798,-400.0,0.00054794,120]
[377306738,1754327460808,-400.0,0.00054794,120]
[377306739,1754327460818,-696.81,0.00054794,120]
[377306740,1754327460829,-400.0,0.00054794,120]
[377306741,1754327460838,-665.9,0.00054794,120]
[377306742,1754327460849,-141.81422467,0.00054794,120]
[377306743,1754327460863,-258.18577533,0.00054794,120]
[377306744,1754327460874,-400.0,0.00054794,120]
[377306745,1754327460889,-884.5,0.00054794,120]
[377306746,1754327460899,-400.0,0.00054794,120]
[377306747,1754327460909,-500.0,0.00054794,120]
[377306748,1754327460919,-500.0,0.00054794,120]
[377306749,1754327460929,-500.0,0.00054794,120]
[377306750,1754327460939,-500.0,0.00054794,120]
[377306751,1754327460950,-308.25455615,0.00054794,120]
[377306752,1754327460959,-2426.12,0.00054794,120]
[377306753,1754327460970,-1078.72,0.00054794,120]
[377306754,1754327460980,-1302.4,0.00054794,120]
[377306755,1754327460991,-698.17,0.00054794,120]
[377306756,1754327461349,-412.029559,0.00054794,120]
[377306757,1754327461392,-412.029559,0.00054794,120]
[377306758,1754327461402,-400.0,0.00054794,120]
[377306759,1754327461412,-412.029559,0.00054794,120]
[377306760,1754327461422,-400.0,0.00054794,7]
[377306761,1754327461432,-952.1,0.00054794,120]
[377306762,1754327461443,-401.35339348,0.00054794,120]
[377306763,1754327461453,-412.029559,0.00054794,120]
[377306764,1754327461462,-400.0,0.00054794,120]
[377306765,1754327461472,-699.51,0.00054794,120]
[377306766,1754327461482,-412.029559,0.00054794,120]
[377306767,1754327461492,-500.0,0.00054794,120]
[377306768,1754327461502,-412.029559,0.00054794,120]
[377306769,1754327461511,-500.0,0.00054794,120]
[377306770,1754327461521,-400.0,0.00054794,120]
[377306771,1754327461531,-500.0,0.00054794,120]
[377306772,1754327461540,-500.0,0.00054794,120]
[377306773,1754327461551,-158.91897046,0.00054794,120]
[377306774,1754327461560,-400.0,0.00054794,120]
[377306775,1754327461570,-400.0,0.00054794,120]
[377306776,1754327461580,-778.93,0.00054794,120]
[377306777,1754327461589,-563.82,0.00054794,120]
[377306778,1754327461601,-400.0,0.00054794,120]
[377306779,1754327461614,-2164.6,0.00054794,120]
[377306780,1754327461624,-2575.51,0.00054794,120]
[377306781,1754327461634,-2840.34,0.00054794,120]
[377306782,1754327461643,-2197.14,0.00054794,120]
[377306783,1754327461654,-2327.14,0.00054794,120]
[377306784,1754327461666,-400.0,0.00054794,120]
[377306785,1754327461675,-400.0,0.00054794,120]
[377306786,1754327461685,-818.98,0.00054794,120]
[377306787,1754327461695,-400.0,0.00054794,120]
[377306788,1754327461708,-400.0,0.00054794,120]
[377306789,1754327461719,-632.53335691,0.00054794,120]
[377306843,1754327637685,167.0,0.00021205,4]
[377306910,1754328022439,155.9,0.00013699,2]
[377306923,1754328111062,387.0,0.0003013,120]
[377306925,1754328122690,436.0,0.0002863,120]
[377306928,1754328241285,436.0,0.0002863,120]
[377306942,1754328311648,28218.38,0.00019,2]
[377306943,1754328311690,1866893.67098862,0.00019,2]
[377306965,1754328362574,436.0,0.0002863,120]
[377307027,1754328476794,50812.87632395,0.00019,2]
[377307028,1754328476824,50000.0,0.00019,2]
[377307029,1754328476852,523155.01134111,0.00019,2]
[377307060,1754328516168,31163.09942187,0.000151,2]
[377307081,1754328549121,-3569.435674,0.00024,5]
[377307088,1754328568694,216.0,0.000201,2]
[377307123,1754328632078,-419.63752728,0.00024,5]
[377307124,1754328632090,-556.464735,0.00024,5]
[377307125,1754328632101,-454.46206372,0.00024,5]
[377307126,1754328632111,-249.94687834,0.00025014,2]
[377307128,1754328633237,-186.05312166,0.00025014,2]
[377307130,1754328633247,-155.9,0.00026027,2]
[377307131,1754328633257,-436.0,0.000264,2]
[377307132,1754328633266,-436.0,0.00026585,2]
[377307133,1754328633276,-1098.0,0.00027999,2]
[377307134,1754328633287,-300.0,0.00027999,2]
[377307135,1754328633297,-1773.5456783,0.00028,30]
[377307138,1754328633351,-8226.4543217,0.00028,30]
[377307139,1754328633362,-7500.0,0.00028,7]
[377307140,1754328633372,-150.0,0.00028,60]
[377307141,1754328633381,-7500.0,0.00029,7]
[377307142,1754328633391,-237.79303976,0.00029153,2]
[377307144,1754328633401,-158.52869317,0.00029153,2]
[377307146,1754328633411,-6166.78844702,0.000299,7]
[377307148,1754328633421,-598.59622317,0.0003,2]
[377307150,1754328633431,-196.73762738,0.0003013,2]
[377307152,1754328633440,-200.41232951,0.0003013,2]
[377307154,1754328633450,-420.0,0.00030239,2]
[377307155,1754328633460,-587.0,0.00032658,2]
[377307156,1754328633469,-821.95345992,0.00033117,2]
[377307157,1754328633479,-12919.56814687,0.00033118,2]
[377307158,1754328633488,-1063.90020156,0.000339,2]
[377307159,1754328633498,-200.0,0.00034,30]
[377307160,1754328633507,-433.28,0.00037254,7]
[377307161,1754328633518,-550.0,0.00038178,2]
[377307162,1754328633527,-150.999999,0.00038179,2]
[377307163,1754328633538,-311.39289347,0.00038179,2]
[377307164,1754328633547,-14900.66700802,0.00038179,2]
[377307165,1754328633559,-6355.94004117,0.00038179,2]
[377307166,1754328633569,-2920.88864027,0.00038179,2]
[377307167,1754328633578,-3152.30434,0.00038179,2]
[377307168,1754328633588,-1395.49393565,0.00038179,10]
[377307169,1754328633599,-3564.87367179,0.00038179,10]
[377307170,1754328633608,-185.12632819,0.00038179,2]
[377307171,1754328633620,-3015.000015,0.00038179,2]
[377307178,1754328637956,-388.47422415,0.00038179,2]
[377307179,1754328637967,-786.29208892,0.00038179,2]
[377307180,1754328637976,-222.38788228,0.00038356,2]
[377307181,1754328637986,-106.5696288,0.00038356,12]
[377307182,1754328637998,-43.4303712,0.00038356,12]
[377307183,1754328638007,-155.9,0.00038356,2]
[377307184,1754328638017,-1200.0,0.00038899,5]
[377307185,1754328638029,-27.3087288,0.00041,90]
[377307212,1754328638477,-131.6912712,0.00041,90]
[377307214,1754328638487,-191.97,0.00041415,2]
[377307216,1754328638497,-1344.88220454,0.00041569,2]
[377307218,1754328638507,-400.0,0.00042,120]
[377307220,1754328638517,-60.46491973,0.00042,120]
[377307222,1754328638528,-339.53508027,0.00042,120]
[377307224,1754328638537,-186.58,0.00042076,120]
[377307226,1754328638548,-222.38788228,0.00042192,2]
[377307228,1754328638558,-1319.38,0.00042387,2]
[377307230,1754328638567,-159.0,0.00043151,90]
[377307232,1754328638576,-186.58,0.00043807,120]
[377307234,1754328638586,-775.28685741,0.00044,7]
[377307236,1754328638598,-1457.40266024,0.00044,7]
[377307238,1754328638607,-345.38179828,0.00044009,2]
[377307241,1754328638617,-325.79,0.00044663,120]
[377307243,1754328638627,-147.43270261,0.00044784,30]
[377307245,1754328638639,-1486.92729739,0.00044784,30]
[377307247,1754328638648,-561.07626761,0.00044973,2]
[377307249,1754328638660,-3158.92017496,0.00044973,2]
[377307251,1754328638671,-3934.156181,0.00044973,2]
[377307256,1754328638702,-1173.60673359,0.00044973,2]
[377307258,1754328638712,-174.12,0.0004524,2]
[377307259,1754328638721,-160.0,0.00045308,90]
[377307261,1754328638729,-186.58,0.00045537,120]
[377307263,1754328638738,-6629.37926705,0.00045558,2]
[377307265,1754328638748,-165.46,0.00045583,2]
[377307268,1754328638758,-156.37,0.00045583,2]
[377307270,1754328638768,-1092.89797069,0.00045643,6]
[377307272,1754328638777,-150.5,0.00046004,2]
[377307274,1754328638786,-156.37,0.00046039,2]
[377307276,1754328638798,-7836.93776295,0.00046699,2]
[377307278,1754328638811,-526.34027581,0.00046699,2]
[377307280,1754328638820,-479.20808743,0.00047062,2]
[377307285,1754328638854,-3270.51074919,0.00047062,2]
[377307287,1754328638866,-1163.39689181,0.00047062,2]
[377307289,1754328638877,-655.00000018,0.00047062,2]
[377307374,1754328640142,-513.37427139,0.00047062,2]
[377307375,1754328640151,-777.88812869,0.00047199,3]
[377307376,1754328640163,-110.11187131,0.00047199,3]
[377307377,1754328640172,-910.802,0.00047211,79]
[377307378,1754328640182,-1000.0,0.00047211,120]
[377307379,1754328640191,-2751.0,0.00047229,120]
[377307380,1754328640200,-24973.50892881,0.0004725,2]
[377307381,1754328640220,-800.0,0.0004725,2]
[377307382,1754328640231,-21845.92107119,0.0004725,2]
[377307383,1754328640241,-3324.65,0.00047255,2]
[377307384,1754328640251,-186.58,0.00047267,120]
[377307385,1754328640261,-787.44291558,0.0004788,100]
[377307386,1754328640270,-448.77,0.00047891,2]
[377307387,1754328640279,-175.0,0.00047901,7]
[377307388,1754328640289,-150.0,0.00048,2]
[377307389,1754328640301,-20101.12418441,0.00048,120]
[377307390,1754328640311,-164.61,0.00048483,2]
[377307391,1754328640321,-600.0,0.00048499,18]
[377307392,1754328640332,-600.0,0.00048499,18]
[377307393,1754328640350,-600.0,0.00048499,18]
[377307394,1754328640370,-600.0,0.00048499,18]
[377307395,1754328640389,-600.0,0.00048499,18]
[377307396,1754328640398,-600.0,0.00048499,18]
[377307397,1754328640407,-600.0,0.00048499,18]
[377307398,1754328640417,-600.0,0.00048499,18]
[377307399,1754328640426,-600.0,0.00048499,18]
[377307400,1754328640435,-600.0,0.00048499,18]
[377307401,1754328640444,-600.0,0.00048499,38]
[377307402,1754328640453,-1092.89797069,0.000485,7]
[377307403,1754328640463,-13114.60288251,0.000485,120]
[377307404,1754328640471,-1000.0,0.00048548,2]
[377307405,1754328640481,-888.0,0.000486,3]
[377307406,1754328640490,-178.59,0.00048708,2]
[377307407,1754328640500,-338.39,0.00048736,2]
[377307408,1754328640509,-5000.0,0.00048736,120]
[377307409,1754328640518,-769.273336,0.00048791,15]
[377307410,1754328640527,-208.84,0.00048881,2]
[377307411,1754328640536,-23900.0,0.00048891,2]
[377307413,1754328640547,-250.0,0.00048891,120]
[377307414,1754328640555,-186.58,0.00048998,120]
[377307415,1754328640565,-300.0,0.00049315,30]
[377307416,1754328640574,-310.0,0.00049315,30]
[377307417,1754328640583,-164.44,0.00049417,120]
[377307418,1754328640592,-1776.0,0.00049439,3]
[377307419,1754328640601,-769.27333594,0.00049523,15]
[377307420,1754328640621,-159.0,0.00049839,120]
[377307421,1754328640631,-167.18,0.00049858,2]
[377307422,1754328640640,-466.93,0.00049941,30]
[377307423,1754328640649,-465.03,0.00049941,30]
[377307424,1754328640659,-500.0,0.0005,120]
[377307425,1754328640668,-1000.0,0.0005,120]
[377307426,1754328640678,-153.85,0.0005,120]
[377307427,1754328640687,-215.0,0.0005,120]
[377307428,1754328640696,-511.63070204,0.0005,120]
[377307429,1754328640829,-1200.86457636,0.0005,120]
[377307430,1754328640858,-281.28050013,0.0005,120]
[377307431,1754328640918,-299.146166,0.00047562,3]
[377307437,1754328643153,-588.853834,0.00047562,3]
[377307438,1754328643163,-1776.0,0.00049802,3]
[377307439,1754328643172,-8169.01989765,0.0005,120]
[377307440,1754328643198,-500.0,0.0005,120]
[377307447,1754328644000,-14675.18662714,0.0005,120]
[377307448,1754328644013,-4378.04841987,0.0005,120]
[377307449,1754328644025,-5902.67120234,0.0005,120]
[377307450,1754328644042,-1184.227438,0.0005,120]
[377307451,1754328644055,-9631.03308627,0.0005,120]
[377307452,1754328644081,-16187.11734397,0.0005,120]
[377307453,1754328644093,-616.65516701,0.0005,120]
[377307454,1754328644142,-153.0,0.0004799,2]
[377307455,1754328644151,-3698.88067642,0.0005,120]
[377307456,1754328644163,-2174.730003,0.0005,120]
[377307457,1754328646307,-888.0,0.00048062,3]
[377307458,1754328646316,-9318.26522404,0.0005,120]
[377307459,1754328646374,-10601.34155,0.0005,120]
[377307460,1754328646436,-5956.389,0.0005,120]
[377307461,1754328646447,-14892.29808276,0.0005,120]
[377307462,1754328646457,-769.27333594,0.00050256,15]
[377307463,1754328646466,-300.0,0.00050273,120]
[377307464,1754328646476,-1776.0,0.00050302,3]
[377307465,1754328646485,-652.50991598,0.00050504,2]
[377307466,1754328646615,-189.0889928,0.00050504,2]
[377307467,1754328646625,-530.72931377,0.00050584,2]
[377307468,1754328646636,-469.27068623,0.00050584,2]
[377307469,1754328646646,-155.9,0.00050685,2]
[377307470,1754328646655,-400.0,0.000507,120]
[377307472,1754328646665,-400.0,0.000507,120]
[377307473,1754328646674,-175.43176676,0.000507,120]
[377307474,1754328646729,-224.56823324,0.000507,120]
[377307475,1754328646738,-345.36264903,0.000507,120]
[377307476,1754328646754,-54.63735097,0.000507,120]
[377307477,1754328646770,-400.0,0.000507,120]
[377307478,1754328646780,-400.0,0.000507,120]
[377307479,1754328646790,-186.58,0.00050728,120]
[377307480,1754328646801,-5062.75377056,0.00050769,120]
[377307481,1754328646832,-1601.67622944,0.00050769,120]
[377307482,1754328646842,-1746.1961,0.00050774,2]
[377307483,1754328646851,-274.8133,0.00050774,2]
[377307484,1754328646861,-2500.0,0.00050792,2]
[377307485,1754328646871,-1776.0,0.0005084,3]
[377307486,1754328646881,-153.0,0.00050864,30]
[377307487,1754328646890,-500.0,0.00050873,10]
[377307488,1754328646900,-959.0,0.00050874,120]
[377307489,1754328646910,-2022.0,0.00050874,120]
[377307490,1754328646919,-564.0,0.00050874,120]
[377307491,1754328646929,-597.0,0.00050874,120]
[377307492,1754328646939,-1292.0,0.00050874,120]
[377307493,1754328646953,-1692.0,0.00050874,120]
[377307494,1754328646963,-892.0,0.00050874,120]
[377307495,1754328646973,-1169.0,0.00050874,120]
[377307496,1754328646983,-808.0,0.00050874,2]
[377307497,1754328646994,-1250.0,0.00050874,120]
[377307498,1754328647003,-4137.0,0.00050874,120]
[377307499,1754328647014,-6070.0,0.00050874,120]
[377307500,1754328647025,-955.0,0.00050874,120]
[377307501,1754328647036,-164.61,0.00050907,2]
[377307502,1754328647045,-769.27333594,0.00050988,15]
[377307503,1754328647056,-1000.0,0.00051,120]
[377307504,1754328647066,-1000.0,0.00051052,2]
[377307505,1754328647075,-247.04881102,0.00051152,120]
[377307506,1754328647085,-184.19186912,0.00051152,120]
[377307507,1754328647095,-769.27333594,0.0005172,15]
[377307508,1754328647105,-433.28,0.00051937,14]
[377307509,1754328647114,-1000.0,0.00052,120]
[377307510,1754328647124,-512.0,0.00052164,20]
[377307511,1754328647133,-769.27333594,0.00052453,15]
[377307512,1754328647143,-186.58,0.00052458,120]
[377307513,1754328647152,-168.14814027,0.000525,120]
[377307514,1754328647162,-400.0,0.000525,120]
[377307516,1754328647174,-400.0,0.000525,120]
[377307518,1754328647183,-400.0,0.000525,120]
[377307519,1754328647192,-400.0,0.000525,120]
[377307520,1754328647202,-1534.34,0.00052508,120]
[377307521,1754328647212,-1151.33365639,0.00052602,120]
[377307522,1754328647222,-377.04,0.000529,7]
[377307523,1754328647231,-1000.0,0.00053,120]
[377307524,1754328647241,-153.0,0.00053,120]
[377307525,1754328647250,-512.0,0.00053035,20]
[377307526,1754328647261,-150.0,0.0005315,2]
[377307527,1754328647270,-769.27333594,0.00053185,15]
[377307528,1754328647280,-164.61,0.00053331,2]
[377307529,1754328647289,-542.66932225,0.00053332,2]
[377307530,1754328647301,-433.28,0.00053366,14]
[377307531,1754328647311,-419.48,0.00053409,120]
[377307532,1754328647321,-691.6373715,0.00053513,2]
[377307533,1754328647330,-3532.13,0.00053577,2]
[377307534,1754328647339,-239.0,0.000536,30]
[377307535,1754328647349,-379.0,0.000536,30]
[377307536,1754328647358,-517.572237,0.00053676,120]
[377307537,1754328647368,-840.60542074,0.00053695,2]
[377307538,1754328647377,-153.0,0.00053699,120]
[377307539,1754328647386,-2231.36982916,0.00053794,60]
[377307540,1754328647395,-892.0,0.00053874,120]
[377307541,1754328647405,-4133.0,0.00053874,120]
[377307542,1754328647415,-6064.0,0.00053874,120]
[377307543,1754328647424,-989.57346999,0.00053876,2]
[377307544,1754328647434,-512.0,0.00053905,20]
[377307545,1754328647443,-769.27333594,0.00053917,15]
[377307546,1754328647453,-3762.43790135,0.00053968,4]
[377307915,1754329130905,390.4275239,0.0003013,120]
[377307916,1754329154119,302.0,0.00030137,120]
[377307925,1754329266652,903.7032657,0.000201,2]
[377307935,1754329308339,165.98,0.00013699,2]
[377307944,1754329604785,499.0,0.000201,2]
[377307945,1754329608161,-160.19,0.0003017,2]
[377307946,1754329608185,-165.98,0.00031311,2]
[377307947,1754329608206,-146.28389915,0.0003174,2]
[377307960,1754329832337,-150.71610085,0.0003174,2]
[377307961,1754329832347,-151.0,0.00033123,2]
[377307962,1754329832357,-151.0,0.00033123,2]
[377307963,1754329832366,-151.0,0.00033133,2]